[Event "GrandPrix_29.05"]
[Site "Chess.com"]
[Date "2020.05.29"]
[Round "1"]
[White "GoltsevDmitry2000"]
[Black "KardashevskiyEvgeny"]
[Result "1/2-1/2"]
[WhiteElo "2304"]
[BlackElo "2022"]
[TimeControl "600+2"]
[EndTime "9:24:39 PDT"]
[Termination "Game drawn - insufficient material"]

1. e4 {[%clk 0:09:58.7]} 1... c5 {[%clk 0:09:55.5]} 2. Nf3 {[%clk 0:09:58.7]}
2... Nc6 {[%clk 0:09:55.5]} 3. d4 {[%clk 0:09:59.5]} 3... cxd4 {[%clk
0:09:49.7]} 4. Nxd4 {[%clk 0:10:01.4]} 4... Nf6 {[%clk 0:09:30]} 5. Nc3 {[%clk
0:10:00.8]} 5... e5 {[%clk 0:09:28.2]} 6. Ndb5 {[%clk 0:10:00.7]} 6... d6 {[%clk
0:09:28]} 7. Nd5 {[%clk 0:09:59.3]} 7... Nxd5 {[%clk 0:09:25.9]} 8. exd5 {[%clk
0:10:01.2]} 8... Ne7 {[%clk 0:09:24.3]} 9. c4 {[%clk 0:10:00.8]} 9... Ng6 {[%clk
0:09:17.6]} 10. Be3 {[%clk 0:08:02.2]} 10... a6 {[%clk 0:09:03.2]} 11. Nc3
{[%clk 0:07:55.8]} 11... Be7 {[%clk 0:08:57.8]} 12. Be2 {[%clk 0:07:49.9]} 12...
O-O {[%clk 0:08:27.4]} 13. O-O {[%clk 0:07:49.7]} 13... Bg5 {[%clk 0:08:17.5]}
14. Qd2 {[%clk 0:07:45.7]} 14... Bxe3 {[%clk 0:08:12.3]} 15. fxe3 {[%clk
0:07:44.4]} 15... f5 {[%clk 0:08:10]} 16. b4 {[%clk 0:07:40.9]} 16... f4 {[%clk
0:07:47.9]} 17. Bd3 {[%clk 0:07:14.2]} 17... Qb6 {[%clk 0:07:23]} 18. Na4 {[%clk
0:07:01.9]} 18... Qxe3+ {[%clk 0:06:37.1]} 19. Qxe3 {[%clk 0:07:01.4]} 19...
fxe3 {[%clk 0:06:36.2]} 20. Bxg6 {[%clk 0:06:38.7]} 20... hxg6 {[%clk
0:06:24.1]} 21. Nb6 {[%clk 0:06:32]} 21... Rb8 {[%clk 0:06:18.9]} 22. Rae1
{[%clk 0:06:25.6]} 22... Rxf1+ {[%clk 0:06:04]} 23. Kxf1 {[%clk 0:06:22.2]}
23... Bf5 {[%clk 0:05:58.7]} 24. Rxe3 {[%clk 0:06:21.4]} 24... Rf8 {[%clk
0:05:54.8]} 25. Ke1 {[%clk 0:06:13.8]} 25... Kf7 {[%clk 0:05:39.9]} 26. c5
{[%clk 0:06:09.8]} 26... Rd8 {[%clk 0:05:11.9]} 27. a4 {[%clk 0:05:46.8]} 27...
Kf6 {[%clk 0:04:47.2]} 28. c6 {[%clk 0:05:34.5]} 28... bxc6 {[%clk 0:04:37.4]}
29. dxc6 {[%clk 0:05:36.4]} 29... e4 {[%clk 0:04:16.4]} 30. c7 {[%clk
0:05:28.7]} 30... Re8 {[%clk 0:04:13.2]} 31. Rc3 {[%clk 0:04:35.1]} 31... Ke5
{[%clk 0:03:42.4]} 32. c8=Q {[%clk 0:04:21]} 32... Bxc8 {[%clk 0:03:27.5]} 33.
Rxc8 {[%clk 0:04:22.9]} 33... Re7 {[%clk 0:03:02.1]} 34. Ke2 {[%clk 0:04:20.4]}
34... Kd4 {[%clk 0:02:40.9]} 35. Rc6 {[%clk 0:04:10.6]} 35... d5 {[%clk
0:02:35.2]} 36. Rd6 {[%clk 0:03:57.2]} 36... Re5 {[%clk 0:02:33.9]} 37. Nd7
{[%clk 0:03:43.4]} 37... Rg5 {[%clk 0:02:27.3]} 38. g3 {[%clk 0:03:44.3]} 38...
Rh5 {[%clk 0:02:16.8]} 39. h4 {[%clk 0:03:43.8]} 39... g5 {[%clk 0:02:16.5]} 40.
Rxa6 {[%clk 0:02:29.8]} 40... gxh4 {[%clk 0:02:10.2]} 41. gxh4 {[%clk
0:02:31.7]} 41... Rxh4 {[%clk 0:01:56.5]} 42. Rd6 {[%clk 0:02:32]} 42... Rh2+
{[%clk 0:01:52.7]} 43. Kf1 {[%clk 0:02:32.5]} 43... e3 {[%clk 0:01:49.5]} 44.
Nb6 {[%clk 0:02:14.6]} 44... Rh1+ {[%clk 0:01:47.2]} 45. Ke2 {[%clk 0:02:14.4]}
45... Rh2+ {[%clk 0:01:41.5]} 46. Kf3 {[%clk 0:02:15.3]} 46... Rf2+ {[%clk
0:01:38.6]} 47. Kg3 {[%clk 0:02:15.6]} 47... Rf5 {[%clk 0:01:36]} 48. Rxd5+
{[%clk 0:02:06.8]} 48... Rxd5 {[%clk 0:01:29.8]} 49. Nxd5 {[%clk 0:02:08.7]}
49... Kxd5 {[%clk 0:01:25.7]} 50. b5 {[%clk 0:00:35.2]} 50... Ke4 {[%clk
0:01:16.5]} 51. b6 {[%clk 0:00:31.5]} 51... Kd3 {[%clk 0:01:15.7]} 52. b7 {[%clk
0:00:32.3]} 52... e2 {[%clk 0:01:16]} 53. b8=Q {[%clk 0:00:33.4]} 53... e1=Q+
{[%clk 0:01:13.5]} 54. Kg4 {[%clk 0:00:11.4]} 54... Qe4+ {[%clk 0:01:05]} 55.
Qf4 {[%clk 0:00:09.3]} 55... Qxf4+ {[%clk 0:01:01.2]} 56. Kxf4 {[%clk
0:00:11.2]} 56... Kc4 {[%clk 0:00:59.8]} 57. Kg5 {[%clk 0:00:12.3]} 57... Kb4
{[%clk 0:00:58.7]} 58. Kg6 {[%clk 0:00:13.7]} 58... Kxa4 {[%clk 0:00:53.7]} 59.
Kxg7 {[%clk 0:00:14.6]} 1/2-1/2

[Event "GrandPrix_29.05"]
[Site "Chess.com"]
[Date "2020.05.29"]
[Round "1"]
[White "anesar92"]
[Black "bsnsun"]
[Result "1-0"]
[WhiteElo "2149"]
[BlackElo "1969"]
[TimeControl "600+2"]
[EndTime "9:24:40 PDT"]
[Termination "anesar92 won by checkmate"]

1. e4 {[%clk 0:10:00.2]} 1... c5 {[%clk 0:09:58.6]} 2. Nf3 {[%clk 0:10:00.4]}
2... d6 {[%clk 0:09:59.4]} 3. Nc3 {[%clk 0:09:59.4]} 3... Nf6 {[%clk 0:09:58.2]}
4. e5 {[%clk 0:09:58.8]} 4... dxe5 {[%clk 0:09:58.4]} 5. Nxe5 {[%clk 0:10:00.7]}
5... Qc7 {[%clk 0:09:52.3]} 6. d4 {[%clk 0:09:57.5]} 6... cxd4 {[%clk
0:09:13.4]} 7. Qxd4 {[%clk 0:09:59.4]} 7... Nc6 {[%clk 0:09:14.6]} 8. Nxc6
{[%clk 0:09:53.8]} 8... bxc6 {[%clk 0:09:15.5]} 9. Bf4 {[%clk 0:09:10]} 9... Qb6
{[%clk 0:09:14.6]} 10. O-O-O {[%clk 0:09:09.7]} 10... Qxd4 {[%clk 0:09:02]} 11.
Rxd4 {[%clk 0:09:11.6]} 11... e6 {[%clk 0:09:02.5]} 12. Ne4 {[%clk 0:08:34]}
12... Nxe4 {[%clk 0:08:26.2]} 13. Rxe4 {[%clk 0:08:35.9]} 13... Bc5 {[%clk
0:08:16.8]} 14. Bg3 {[%clk 0:08:15.7]} 14... Bd7 {[%clk 0:08:11.9]} 15. Ba6
{[%clk 0:08:06.7]} 15... O-O {[%clk 0:07:14.4]} 16. Rd1 {[%clk 0:08:02.4]} 16...
Bc8 {[%clk 0:07:14.1]} 17. Be2 {[%clk 0:06:30.3]} 17... Bb6 {[%clk 0:06:45.1]}
18. Bf3 {[%clk 0:06:01.8]} 18... Ba6 {[%clk 0:06:24.8]} 19. a4 {[%clk
0:05:48.8]} 19... Rac8 {[%clk 0:06:07.1]} 20. a5 {[%clk 0:05:39.4]} 20... Bc5
{[%clk 0:05:47]} 21. Re5 {[%clk 0:05:30.4]} 21... Bb4 {[%clk 0:04:32]} 22. c3
{[%clk 0:05:16.4]} 22... Be7 {[%clk 0:04:20]} 23. Rd7 {[%clk 0:05:15.3]} 23...
Bf6 {[%clk 0:03:27.9]} 24. Rc5 {[%clk 0:05:13.4]} 24... Bb5 {[%clk 0:02:39.7]}
25. b3 {[%clk 0:04:09.8]} 25... Rfd8 {[%clk 0:02:12.4]} 26. Rxd8+ {[%clk
0:02:50.3]} 26... Bxd8 {[%clk 0:01:01.4]} 27. Bd6 {[%clk 0:02:07.9]} 27... Bxa5
{[%clk 0:00:44.6]} 28. c4 {[%clk 0:02:08.6]} 28... Bb6 {[%clk 0:00:36.4]} 29.
cxb5 {[%clk 0:01:54.7]} 29... Bxc5 {[%clk 0:00:37]} 30. Bxc5 {[%clk 0:01:56.6]}
30... cxb5 {[%clk 0:00:38]} 31. b4 {[%clk 0:01:58.5]} 31... a5 {[%clk
0:00:39.3]} 32. Kb2 {[%clk 0:01:58.8]} 32... axb4 {[%clk 0:00:38.8]} 33. Bxb4
{[%clk 0:01:59.6]} 33... f6 {[%clk 0:00:39.5]} 34. Be2 {[%clk 0:01:59.1]} 34...
Kf7 {[%clk 0:00:34.7]} 35. Kb3 {[%clk 0:02:00]} 35... Rb8 {[%clk 0:00:29.6]} 36.
Bc5 {[%clk 0:01:58]} 36... g5 {[%clk 0:00:29.6]} 37. Kb4 {[%clk 0:01:58.6]}
37... h5 {[%clk 0:00:22.6]} 38. Bxh5+ {[%clk 0:01:57.9]} 38... Kg7 {[%clk
0:00:23]} 39. Be2 {[%clk 0:01:57.9]} 39... f5 {[%clk 0:00:23.1]} 40. Bxb5 {[%clk
0:01:57.5]} 40... g4 {[%clk 0:00:23]} 41. Kc4 {[%clk 0:01:55.9]} 41... Kf7
{[%clk 0:00:21.9]} 42. Bd4 {[%clk 0:01:48]} 42... Rc8+ {[%clk 0:00:17]} 43. Kd3
{[%clk 0:01:48.7]} 43... Rd8 {[%clk 0:00:18.2]} 44. Ke3 {[%clk 0:01:48.7]} 44...
Rb8 {[%clk 0:00:14]} 45. Bc4 {[%clk 0:01:46.3]} 45... Rc8 {[%clk 0:00:15.3]} 46.
Bd3 {[%clk 0:01:45.9]} 46... Rb8 {[%clk 0:00:16.8]} 47. h4 {[%clk 0:01:44.7]}
47... gxh3 {[%clk 0:00:16.2]} 48. gxh3 {[%clk 0:01:46.6]} 48... Rb4 {[%clk
0:00:17.7]} 49. h4 {[%clk 0:01:42.5]} 49... e5 {[%clk 0:00:17.1]} 50. Bxe5
{[%clk 0:01:41.8]} 50... Rxh4 {[%clk 0:00:17.1]} 51. Bxf5 {[%clk 0:01:42.6]}
51... Rh5 {[%clk 0:00:17.7]} 52. Ke4 {[%clk 0:01:42.8]} 52... Rh1 {[%clk
0:00:18.8]} 53. Bg4 {[%clk 0:01:39.7]} 53... Re1+ {[%clk 0:00:19.3]} 54. Kf5
{[%clk 0:01:40.5]} 54... Rf1 {[%clk 0:00:20.4]} 55. f4 {[%clk 0:01:41]} 55...
Rb1 {[%clk 0:00:19.6]} 56. Bh5+ {[%clk 0:01:41.2]} 56... Ke7 {[%clk 0:00:20.2]}
57. Bf6+ {[%clk 0:01:40.7]} 57... Kf8 {[%clk 0:00:21.6]} 58. Kg6 {[%clk
0:01:39.7]} 58... Rb5 {[%clk 0:00:21]} 59. f5 {[%clk 0:01:37.3]} 59... Rb6
{[%clk 0:00:22.3]} 60. Kg5 {[%clk 0:01:38]} 60... Rc6 {[%clk 0:00:23.2]} 61. Be5
{[%clk 0:01:32.6]} 61... Ke7 {[%clk 0:00:24.5]} 62. Bf3 {[%clk 0:01:26.9]} 62...
Rc8 {[%clk 0:00:24.2]} 63. f6+ {[%clk 0:01:26]} 63... Ke8 {[%clk 0:00:19.1]} 64.
Kg6 {[%clk 0:01:23.1]} 64... Kf8 {[%clk 0:00:12.5]} 65. Bd6+ {[%clk 0:01:18.6]}
65... Kg8 {[%clk 0:00:12]} 66. f7+ {[%clk 0:01:18.3]} 66... Kh8 {[%clk 0:00:13]}
67. f8=Q+ {[%clk 0:01:17.4]} 67... Rxf8 {[%clk 0:00:13.4]} 68. Bxf8 {[%clk
0:01:19.3]} 68... Kg8 {[%clk 0:00:14.9]} 69. Bh6 {[%clk 0:01:19]} 69... Kh8
{[%clk 0:00:16]} 70. Bg7+ {[%clk 0:01:20.9]} 70... Kg8 {[%clk 0:00:17.4]} 71.
Bd5# {[%clk 0:01:22.8]} 1-0

[Event "GrandPrix_29.05"]
[Site "Chess.com"]
[Date "2020.05.29"]
[Round "1"]
[White "Inkalubo"]
[Black "LuckyLuka04"]
[Result "1/2-1/2"]
[WhiteElo "1718"]
[BlackElo "2232"]
[TimeControl "600+2"]
[EndTime "9:24:41 PDT"]
[Termination "Game drawn by agreement"]

1. Nf3 {[%clk 0:09:59.6]} 1... Nf6 {[%clk 0:10:00.1]} 2. g3 {[%clk 0:09:59.7]}
2... b5 {[%clk 0:10:00.5]} 3. Bg2 {[%clk 0:10:00.1]} 3... Bb7 {[%clk 0:10:00.5]}
4. O-O {[%clk 0:10:00.2]} 4... e6 {[%clk 0:10:00.8]} 5. b3 {[%clk 0:10:00.5]}
5... c5 {[%clk 0:09:58.5]} 6. c4 {[%clk 0:10:00.8]} 6... a6 {[%clk 0:09:56.9]}
7. e3 {[%clk 0:09:53.7]} 7... Be7 {[%clk 0:09:43.7]} 8. Nc3 {[%clk 0:09:52.2]}
8... b4 {[%clk 0:09:27]} 9. Na4 {[%clk 0:09:52]} 9... d6 {[%clk 0:09:07.5]} 10.
d4 {[%clk 0:09:45.8]} 10... Nbd7 {[%clk 0:09:07.4]} 11. Bb2 {[%clk 0:09:41.2]}
11... Qc7 {[%clk 0:09:02]} 12. Qe2 {[%clk 0:09:35.5]} 12... O-O {[%clk
0:08:59.7]} 13. Rfd1 {[%clk 0:09:30.4]} 13... Rfd8 {[%clk 0:08:57]} 14. Rac1
{[%clk 0:09:20.1]} 14... Rac8 {[%clk 0:08:11.8]} 15. dxc5 {[%clk 0:07:55.2]}
15... dxc5 {[%clk 0:07:58]} 16. h3 {[%clk 0:07:20.6]} 16... Bc6 {[%clk 0:07:50]}
17. Ne1 {[%clk 0:07:16.2]} 17... Bxa4 {[%clk 0:07:22.3]} 18. bxa4 {[%clk
0:07:16.6]} 18... Nb6 {[%clk 0:06:45]} 19. Qc2 {[%clk 0:07:16.3]} 19... Rxd1
{[%clk 0:06:28.7]} 20. Rxd1 {[%clk 0:07:16.8]} 20... Rd8 {[%clk 0:06:13.9]} 21.
a5 {[%clk 0:06:52.5]} 21... Rxd1 {[%clk 0:05:51.1]} 22. Qxd1 {[%clk 0:06:44]}
22... Nxc4 {[%clk 0:05:43.2]} 23. Bxf6 {[%clk 0:06:40.2]} 23... Bxf6 {[%clk
0:05:38.5]} 24. Qd3 {[%clk 0:06:40.6]} 24... Nxa5 {[%clk 0:05:29.8]} 25. Qxa6
{[%clk 0:06:41.1]} 25... g6 {[%clk 0:05:18.4]} 26. Nd3 {[%clk 0:06:33]} 26...
Bc3 {[%clk 0:04:52.6]} 27. Qb5 {[%clk 0:06:23.4]} 27... c4 {[%clk 0:03:45.4]}
28. Nxb4 {[%clk 0:06:24.2]} 28... Bxb4 {[%clk 0:02:23.6]} 29. Qxb4 {[%clk
0:06:24.6]} 29... Qe5 {[%clk 0:02:00]} 30. Bf1 {[%clk 0:05:59.5]} 30... c3
{[%clk 0:01:45.7]} 31. Bd3 {[%clk 0:05:59.1]} 31... Nc6 {[%clk 0:01:35.8]} 32.
Qc4 {[%clk 0:05:21.1]} 32... Ne7 {[%clk 0:01:25.7]} 33. a4 {[%clk 0:05:05.5]}
33... Qa5 {[%clk 0:00:33.3]} 34. e4 {[%clk 0:04:36.4]} 34... Qe5 {[%clk
0:00:24.6]} 35. h4 {[%clk 0:02:37.7]} 35... h6 {[%clk 0:00:23.5]} 36. Kf1 {[%clk
0:02:26.1]} 36... g5 {[%clk 0:00:24.5]} 37. hxg5 {[%clk 0:02:20.8]} 37... hxg5
{[%clk 0:00:26.4]} 38. Qb5 {[%clk 0:02:13.4]} 38... Qc7 {[%clk 0:00:20.9]} 39.
Qxg5+ {[%clk 0:01:24.4]} 39... Ng6 {[%clk 0:00:22.4]} 40. Qc1 {[%clk 0:01:08.6]}
40... Ne5 {[%clk 0:00:20.5]} 41. Bc2 {[%clk 0:00:50.3]} 41... Qc4+ {[%clk
0:00:20.2]} 42. Kg2 {[%clk 0:00:48.2]} 42... Qd4 {[%clk 0:00:15.6]} 43. Qg5+
{[%clk 0:00:35.4]} 43... Kf8 {[%clk 0:00:16.8]} 44. Qh6+ {[%clk 0:00:34.9]}
44... Ke8 {[%clk 0:00:17.2]} 45. a5 {[%clk 0:00:23.9]} 45... Nd3 {[%clk
0:00:13.1]} 46. Kf1 {[%clk 0:00:06.6]} 46... Nb4 {[%clk 0:00:12.1]} 47. Ba4+
{[%clk 0:00:05.6]} 47... Kd8 {[%clk 0:00:10.2]} 48. Qf8+ {[%clk 0:00:05.1]}
48... Kc7 {[%clk 0:00:11.6]} 49. Qe7+ {[%clk 0:00:06]} 49... Kb8 {[%clk
0:00:12.4]} 50. Qf8+ {[%clk 0:00:05.1]} 50... Ka7 {[%clk 0:00:12]} 51. Qxf7+
{[%clk 0:00:06.2]} 51... Kb8 {[%clk 0:00:12.6]} 52. Qe8+ {[%clk 0:00:06.4]}
52... Ka7 {[%clk 0:00:13.8]} 53. Qe7+ {[%clk 0:00:06]} 53... Kb8 {[%clk
0:00:14.9]} 54. Qe8+ {[%clk 0:00:06.8]} 54... Ka7 {[%clk 0:00:15.8]} 55. Qe7+
{[%clk 0:00:07.8]} 55... Kb8 {[%clk 0:00:16.9]} 1/2-1/2

[Event "GrandPrix_29.05"]
[Site "Chess.com"]
[Date "2020.05.29"]
[Round "1"]
[White "Olga_Girya"]
[Black "faraone99"]
[Result "0-1"]
[WhiteElo "2012"]
[BlackElo "2096"]
[TimeControl "600+2"]
[EndTime "9:24:42 PDT"]
[Termination "faraone99 won on time"]

1. d4 {[%clk 0:09:53.5]} 1... Nf6 {[%clk 0:10:00.3]} 2. c4 {[%clk 0:09:04]} 2...
e6 {[%clk 0:10:00.1]} 3. Nf3 {[%clk 0:09:03.5]} 3... b6 {[%clk 0:10:00.7]} 4. g3
{[%clk 0:09:03.9]} 4... Ba6 {[%clk 0:10:01.1]} 5. b3 {[%clk 0:09:02.8]} 5...
Bb4+ {[%clk 0:10:01.4]} 6. Bd2 {[%clk 0:09:03.2]} 6... Be7 {[%clk 0:10:02.3]} 7.
Nc3 {[%clk 0:08:56.3]} 7... d5 {[%clk 0:09:48]} 8. cxd5 {[%clk 0:08:54.1]} 8...
exd5 {[%clk 0:09:40]} 9. Bg2 {[%clk 0:08:51.9]} 9... O-O {[%clk 0:09:39.8]} 10.
O-O {[%clk 0:08:52.4]} 10... Nbd7 {[%clk 0:09:38.7]} 11. Ne5 {[%clk 0:08:51.9]}
11... Bb7 {[%clk 0:09:17.8]} 12. Bc1 {[%clk 0:08:35.4]} 12... Bd6 {[%clk
0:08:56.8]} 13. f4 {[%clk 0:08:06]} 13... a6 {[%clk 0:08:48.5]} 14. Bb2 {[%clk
0:07:58.4]} 14... Re8 {[%clk 0:08:27.8]} 15. e3 {[%clk 0:07:45.3]} 15... Qe7
{[%clk 0:08:08.7]} 16. g4 {[%clk 0:06:39.4]} 16... Ne4 {[%clk 0:07:22.9]} 17.
Nxe4 {[%clk 0:06:06.9]} 17... dxe4 {[%clk 0:07:21.7]} 18. Qc2 {[%clk 0:06:02.4]}
18... f6 {[%clk 0:06:45.1]} 19. Qc4+ {[%clk 0:05:28.6]} 19... Kf8 {[%clk
0:06:01.8]} 20. g5 {[%clk 0:05:29]} 20... b5 {[%clk 0:05:42.5]} 21. Qe2 {[%clk
0:05:05.9]} 21... fxg5 {[%clk 0:04:46.7]} 22. fxg5+ {[%clk 0:05:00.3]} 22... Kg8
{[%clk 0:04:47.2]} 23. Rf7 {[%clk 0:04:45.8]} 23... Qe6 {[%clk 0:04:24.2]} 24.
d5 {[%clk 0:03:23.3]} 24... Qxe5 {[%clk 0:03:25.5]} 25. Bxe5 {[%clk 0:03:20]}
25... Nxe5 {[%clk 0:03:27.4]} 26. Rff1 {[%clk 0:03:05.2]} 26... Bxd5 {[%clk
0:03:23.5]} 27. Rad1 {[%clk 0:03:02.9]} 27... Bb7 {[%clk 0:03:23.3]} 28. Qc2
{[%clk 0:02:00.1]} 28... Nf3+ {[%clk 0:02:38.4]} 29. Kh1 {[%clk 0:01:56.8]}
29... Re7 {[%clk 0:02:15.2]} 30. Rf2 {[%clk 0:01:15.8]} 30... Rf8 {[%clk
0:01:52.6]} 31. Rdf1 {[%clk 0:01:12.5]} 31... Ref7 {[%clk 0:01:51.8]} 32. Bh3
{[%clk 0:01:09.2]} 32... Nxg5 {[%clk 0:01:30.5]} 33. Rxf7 {[%clk 0:01:03.9]}
33... Rxf7 {[%clk 0:01:31.4]} 34. Rxf7 {[%clk 0:01:03.2]} 34... Kxf7 {[%clk
0:01:31.2]} 35. Qf2+ {[%clk 0:00:57.1]} 35... Nf3 {[%clk 0:01:26.5]} 36. Bg4
{[%clk 0:00:42.3]} 36... g6 {[%clk 0:01:25.7]} 37. Bxf3 {[%clk 0:00:20]} 37...
exf3 {[%clk 0:01:26.4]} 38. Kg1 {[%clk 0:00:21.6]} 38... g5 {[%clk 0:01:22.6]}
39. Qc2 {[%clk 0:00:21.7]} 39... Kg7 {[%clk 0:01:20.9]} 40. Qf5 {[%clk
0:00:22.4]} 40... h6 {[%clk 0:01:18.3]} 41. e4 {[%clk 0:00:20.4]} 41... Bf4
{[%clk 0:00:59]} 42. Kf2 {[%clk 0:00:21.1]} 42... Bxh2 {[%clk 0:00:56]} 43. Kxf3
{[%clk 0:00:20.1]} 43... Bd6 {[%clk 0:00:54.7]} 44. Ke2 {[%clk 0:00:18.5]} 44...
Be7 {[%clk 0:00:48.4]} 45. Qd7 {[%clk 0:00:18.1]} 45... Kf8 {[%clk 0:00:48.2]}
46. e5 {[%clk 0:00:13.1]} 46... g4 {[%clk 0:00:45.7]} 47. Qxc7 {[%clk
0:00:13.4]} 47... Bf3+ {[%clk 0:00:46.1]} 48. Kf2 {[%clk 0:00:13.5]} 48... Bh4+
{[%clk 0:00:45.4]} 49. Kg1 {[%clk 0:00:14.3]} 49... Bg5 {[%clk 0:00:45.4]} 50.
Qc8+ {[%clk 0:00:14.1]} 50... Kg7 {[%clk 0:00:44.7]} 51. Qd7+ {[%clk 0:00:14.9]}
51... Kg6 {[%clk 0:00:45.4]} 52. Qe6+ {[%clk 0:00:15.5]} 52... Kh5 {[%clk
0:00:44.8]} 53. Qe8+ {[%clk 0:00:09.7]} 53... Kh4 {[%clk 0:00:45.5]} 54. e6
{[%clk 0:00:05]} 54... g3 {[%clk 0:00:45]} 55. Kf1 {[%clk 0:00:05.3]} 55... g2+
{[%clk 0:00:44.4]} 56. Kf2 {[%clk 0:00:06.2]} 56... Be4 {[%clk 0:00:39.5]} 57.
Qg8 {[%clk 0:00:03.9]} 57... Kh3 {[%clk 0:00:35.8]} 58. e7 {[%clk 0:00:05.1]}
58... Kh2 {[%clk 0:00:36.7]} 0-1

[Event "GrandPrix_29.05"]
[Site "Chess.com"]
[Date "2020.05.29"]
[Round "1"]
[White "SipkeErnst"]
[Black "Keks2017"]
[Result "0-1"]
[WhiteElo "1961"]
[BlackElo "2447"]
[TimeControl "600+2"]
[EndTime "9:24:42 PDT"]
[Termination "Keks2017 won on time"]

1. d4 {[%clk 0:10:01.9]} 1... d6 {[%clk 0:10:00.3]} 2. Nf3 {[%clk 0:10:01.9]}
2... Nf6 {[%clk 0:10:00]} 3. c4 {[%clk 0:10:00.7]} 3... Nbd7 {[%clk 0:09:59.6]}
4. Nc3 {[%clk 0:10:00.8]} 4... e5 {[%clk 0:09:58.8]} 5. g3 {[%clk 0:10:01.5]}
5... g6 {[%clk 0:09:58.5]} 6. Bg2 {[%clk 0:10:02.3]} 6... Bg7 {[%clk 0:09:59]}
7. O-O {[%clk 0:10:03]} 7... O-O {[%clk 0:09:59]} 8. e4 {[%clk 0:10:01.5]} 8...
exd4 {[%clk 0:09:57.4]} 9. Nxd4 {[%clk 0:10:01.6]} 9... Re8 {[%clk 0:09:54.5]}
10. h3 {[%clk 0:10:01]} 10... a6 {[%clk 0:09:54.7]} 11. b3 {[%clk 0:09:45.2]}
11... Rb8 {[%clk 0:09:42.8]} 12. Re1 {[%clk 0:09:00.3]} 12... c5 {[%clk
0:09:16.2]} 13. Nc2 {[%clk 0:08:59.5]} 13... Ne5 {[%clk 0:08:48.4]} 14. Be3
{[%clk 0:08:05.1]} 14... Nc6 {[%clk 0:08:24]} 15. Bf4 {[%clk 0:07:55.3]} 15...
Nh5 {[%clk 0:08:08]} 16. Bd2 {[%clk 0:07:53.9]} 16... b5 {[%clk 0:08:01.8]} 17.
Nd5 {[%clk 0:07:27.8]} 17... bxc4 {[%clk 0:07:04.8]} 18. bxc4 {[%clk 0:07:25.8]}
18... Be6 {[%clk 0:07:02.5]} 19. g4 {[%clk 0:07:06.9]} 19... Nf6 {[%clk
0:06:55.9]} 20. Bg5 {[%clk 0:06:55.9]} 20... Bxd5 {[%clk 0:06:44.3]} 21. cxd5
{[%clk 0:06:55.2]} 21... Nb4 {[%clk 0:06:27.4]} 22. Nxb4 {[%clk 0:05:58.5]}
22... Rxb4 {[%clk 0:06:24.5]} 23. a3 {[%clk 0:05:43.2]} 23... Rb8 {[%clk
0:06:01.8]} 24. Qa4 {[%clk 0:04:58.6]} 24... h6 {[%clk 0:06:01]} 25. Bh4 {[%clk
0:04:59.8]} 25... Qd7 {[%clk 0:05:22.9]} 26. Qxa6 {[%clk 0:04:30.7]} 26... Nxe4
{[%clk 0:05:14.7]} 27. Rac1 {[%clk 0:03:28.8]} 27... Nc3 {[%clk 0:03:51.2]} 28.
Bg3 {[%clk 0:03:23.9]} 28... Red8 {[%clk 0:02:35.4]} 29. Re3 {[%clk 0:02:36.2]}
29... Nb5 {[%clk 0:01:27.6]} 30. Rce1 {[%clk 0:02:22.4]} 30... Bf8 {[%clk
0:01:26.3]} 31. Qc6 {[%clk 0:00:57]} 31... Qa7 {[%clk 0:00:53.6]} 32. Bf1 {[%clk
0:00:16.2]} 32... Nd4 {[%clk 0:00:51.8]} 33. Qa6 {[%clk 0:00:17.3]} 33... Qxa6
{[%clk 0:00:52.6]} 34. Bxa6 {[%clk 0:00:18.7]} 34... Nc2 {[%clk 0:00:53]} 35. a4
{[%clk 0:00:18.9]} 35... Nxe3 {[%clk 0:00:49.1]} 36. Rxe3 {[%clk 0:00:17.8]}
36... Rb1+ {[%clk 0:00:38.8]} 37. Kg2 {[%clk 0:00:18.2]} 37... Rdb8 {[%clk
0:00:29.7]} 38. Bb5 {[%clk 0:00:18.2]} 38... Rc8 {[%clk 0:00:24.4]} 39. Re4
{[%clk 0:00:18.6]} 39... c4 {[%clk 0:00:21.2]} 40. Bc6 {[%clk 0:00:11.9]} 40...
c3 {[%clk 0:00:19.1]} 41. Rc4 {[%clk 0:00:12.5]} 41... Rc1 {[%clk 0:00:18.7]}
42. Bf4 {[%clk 0:00:11.1]} 42... Rc2 {[%clk 0:00:19.1]} 43. Be3 {[%clk
0:00:09.4]} 43... Rb8 {[%clk 0:00:18.5]} 44. a5 {[%clk 0:00:09.5]} 44... Ra2
{[%clk 0:00:17.5]} 45. Bb6 {[%clk 0:00:09.8]} 45... Bg7 {[%clk 0:00:16.1]} 46.
Ba4 {[%clk 0:00:04.2]} 46... Be5 {[%clk 0:00:12.9]} 47. Bb3 {[%clk 0:00:04.1]}
47... Rb2 {[%clk 0:00:12.7]} 48. Ba4 {[%clk 0:00:04.7]} 48... R2xb6 {[%clk
0:00:13.1]} 49. axb6 {[%clk 0:00:05.4]} 49... Rxb6 {[%clk 0:00:13.9]} 50. Rc7
{[%clk 0:00:05.2]} 50... Rb8 {[%clk 0:00:13.2]} 51. Kf3 {[%clk 0:00:03.9]} 51...
Kg7 {[%clk 0:00:13.7]} 52. Ke4 {[%clk 0:00:04.9]} 52... Rb4+ {[%clk 0:00:13.2]}
0-1